[Event "XII Cracow ICC-A 2024"]
[Site "Krakow"]
[Date "2024.06.22"]
[Round "1.7"]
[White "Chatalbashev, Boris"]
[Black "Oksendal, Martin"]
[Result "1/2-1/2"]
[ECO "D85"]
[WhiteElo "2483"]
[BlackElo "2264"]
[Annotator "TA"]
[PlyCount "66"]
[EventDate "2024.06.20"]
[EventType "swiss"]
[EventCountry "POL"]
[SourceTitle "playchess.com"]
[Source "ChessBase"]
[SourceQuality "1"]
[TimeControl "40/5400+30:1800+30"]

{[%evp 9,66,23,39,51,54,0,0,0,0,0,0,0,0,0,0,0,0,-2,25,18,25,16,29,24,22,14,11,13,15,25,8,27,22,23,35,0,0,0,49,29,28,36,53,0,6,0,0,0,0,0,0,0,0,0,0,0,0,0,0]} 1. d4 {[%emt 0:00:04]} Nf6 {[%emt 0:00:10]} 2. c4 {[%emt 0:00:06]} g6 {[%emt 0:00:20]} 3. Nc3 {[%emt 0:00:07]} d5 {[%emt 0:00:05]} 4. cxd5 {[%emt 0:03:09]} Nxd5 {[%emt 0:00:07]} 5. Bd2 {[%emt 0:00:09]} c5 {[%emt 0:03:14]} 6. dxc5 {[%emt 0:00:32]} Bg7 {[%emt 0:00:07]} 7. Rc1 {[%emt 0:00:55]} (7. Qb3 $14 Nf6 8. g3) 7... O-O $11 {[%emt 0:00:35][%cal Bh8f8,Bf8d8,Bd8d7][%mdl 32]} 8. e4 {[%emt 0:03:32]} Nxc3 {[%emt 0:03:05]} 9. Bxc3 {[%emt 0:00:10]} Qxd1+ {[%emt 0:00:15]} 10. Kxd1 {[%emt 0:00:10][%cal Be1d1,Bd1c2,Bc2c3,Bc3b4][%mdl 32]} Rd8+ {[%emt 0:00:25]} 11. Kc2 {[%emt 0:01:58]} Bxc3 {[%emt 0:04:38]} 12. Kxc3 {[%emt 0:00:08]} Be6 {[%emt 0:05:57]} 13. Bb5 {[%emt 0:20:09] Prevents Nd7} Nd7 {[%emt 0:18:05]} 14. Bxd7 {[%emt 0:00:14]} Rxd7 {[%emt 0:02:32]} 15. Nf3 {[%emt 0:00:26]} Rc7 {[%emt 0:12:58]} 16. Kb4 {[%emt 0:14:29]} a5+ {[%emt 0:03:11]} 17. Ka4 {[%emt 0:01:09]} Rac8 {[%emt 0:08:26]} 18. Kxa5 {[%emt 0:25:37]} Rxc5+ {[%emt 0:05:21]} 19. Rxc5 {[%emt 0:00:03]} Rxc5+ {[%emt 0:00:05][%mdl 4096] Endgame. KRB-KRN} 20. Kb6 {[%emt 0:00:05]} Rc2 {[%emt 0:00:50]} 21. b4 {[%emt 0:00:06] Hoping for b5.} Rxa2 {[%emt 0:08:45]} 22. Rd1 {[%emt 0:07:27]} Rxf2 {[%emt 0:00:42]} 23. Rd2 {[%emt 0:00:40]} Rf1 {[%emt 0:00:12]} (23... Rxd2 $11 24. Nxd2 f5) 24. Kxb7 {[%emt 0:03:38] Black must now prevent b5.} Rb1 {[%emt 0:01:22]} 25. Rd4 {[%emt 0:00:02]} Rb2 {[%emt 0:00:33][%cal Of7f6]} 26. Nd2 {[%emt 0:02:41]} (26. Kb6 $14) 26... Kg7 {[%emt 0:04:14] The position is equal.} 27. e5 {[%emt 0:02:07]} f6 {[%emt 0:01:36]} 28. exf6+ {[%emt 0:00:06]} Kxf6 {[%emt 0:00:54]} 29. Kc6 {[%emt 0:02:08]} Bf7 {[%emt 0:02:57]} 30. Kc5 {[%emt 0:03:46]} Rc2+ {[%emt 0:02:22]} 31. Kb6 {[%emt 0:00:02]} Rb2 {[%emt 0:01:42]} 32. Kc5 {[%emt 0:01:08]} Rc2+ {[%emt 0:00:10]} 33. Kb6 {[%emt 0:00:33]} Rb2 {[%emt 0:01:25] Weighted Error Value: White=0.08 (flawless) /Black=0.07 (flawless) .  Mistake:       	White=2     	Black=1      Inaccurate:     	White=1     	Black=1      OK:         	White=10    	Black=9      Best:        	White=1     	Black=5} 1/2-1/2

[Event "XII Cracow ICC-A 2024"]
[Site "Krakow"]
[Date "2024.06.22"]
[Round "1.8"]
[White "Stanojevic, Ilija"]
[Black "Kosakowski, Jakub"]
[Result "1/2-1/2"]
[ECO "D39"]
[WhiteElo "2260"]
[BlackElo "2480"]
[Annotator "RC"]
[PlyCount "105"]
[EventDate "2024.06.20"]
[EventType "swiss"]
[EventCountry "POL"]
[SourceTitle "playchess.com"]
[Source "ChessBase"]
[SourceQuality "1"]
[TimeControl "40/5400+30:1800+30"]

1. d4 {[%emt 0:00:06]} d5 {[%emt 0:00:15]} 2. c4 {[%emt 0:00:19]} e6 {[%emt 0:00:10]} 3. Nf3 {[%emt 0:01:39]} Nf6 {[%emt 0:00:16]} 4. Nc3 {[%emt 0:00:24]} Bb4 {[%emt 0:00:13]} 5. Bg5 {[%emt 0:00:28]} dxc4 {[%emt 0:00:43]} 6. e4 {[%emt 0:07:42]} c5 {[%emt 0:00:11]} 7. Bxc4 {[%emt 0:10:22]} cxd4 {[%emt 0:00:11]} 8. Nxd4 {[%emt 0:03:52]} Qa5 {[%emt 0:00:29]} 9. Bb5+ {[%emt 0:21:54]} Bd7 {[%emt 0:04:22]} 10. Bd2 {[%emt 0:08:57]} Bxb5 {[%emt 0:03:45]} 11. Ndxb5 {[%emt 0:09:34]} Nxe4 {[%emt 0:11:20]} 12. Qf3 {[%emt 0:09:59]} Nxc3 {[%emt 0:09:45]} 13. Nxc3 {[%emt 0:05:46]} Qe5+ {[%emt 0:04:08]} 14. Qe2 {[%emt 0:00:44]} Nc6 {[%emt 0:01:01]} 15. Rc1 {[%emt 0:01:55]} Qxe2+ {[%emt 0:04:00]} 16. Kxe2 {[%emt 0:00:06]} Nd4+ {[%emt 0:05:11]} 17. Ke3 {[%emt 0:02:56]} Nf5+ {[%emt 0:08:09]} 18. Ke2 {[%emt 0:00:57]} O-O {[%emt 0:07:16]} 19. Rhd1 {[%emt 0:01:00]} Bxc3 {[%emt 0:02:12]} 20. Rxc3 {[%emt 0:02:37]} Nd4+ {[%emt 0:03:48]} 21. Ke1 {[%emt 0:01:52]} Nc6 {[%emt 0:06:13]} 22. Rb3 {[%emt 0:01:01]} b6 {[%emt 0:00:59]} 23. Rc1 {[%emt 0:01:22]} Rac8 {[%emt 0:00:38]} 24. Rbc3 {[%emt 0:00:56]} Ne7 {[%emt 0:00:08]} 25. Rc7 {[%emt 0:00:57]} Rxc7 {[%emt 0:03:45]} 26. Rxc7 {[%emt 0:00:07]} Nc8 {[%emt 0:00:04]} 27. a4 {[%emt 0:01:25]} h6 {[%emt 0:02:15]} 28. b4 {[%emt 0:00:36]} Rd8 {[%emt 0:00:21]} 29. b5 {[%emt 0:00:49]} Nd6 {[%emt 0:02:55]} 30. Rxa7 {[%emt 0:00:37]} Ne4 {[%emt 0:00:11]} 31. Be3 {[%emt 0:01:01]} Nc3 {[%emt 0:00:16]} 32. Bd2 {[%emt 0:00:22]} Nd5 {[%emt 0:00:36]} 33. Be3 {[%emt 0:01:58]} g5 {[%emt 0:01:13]} 34. g3 {[%emt 0:01:08]} Kg7 {[%emt 0:00:25]} 35. h3 {[%emt 0:00:17]} Kg6 {[%emt 0:00:12]} 36. g4 {[%emt 0:00:28]} f5 {[%emt 0:00:37]} 37. Bd4 {[%emt 0:01:21]} h5 {[%emt 0:00:37]} 38. f3 {[%emt 0:00:36]} h4 {[%emt 0:01:51]} 39. a5 {[%emt 0:01:02]} bxa5 {[%emt 0:04:06]} 40. b6 {[%emt 0:00:21]} Nb4 {[%emt 0:00:15]} 41. b7 {[%emt 0:10:35]} Nc6 {[%emt 0:04:39]} 42. Bb6 {[%emt 0:01:08]} Rd3 {[%emt 0:13:31]} 43. Bc7 {[%emt 0:05:03]} Rxf3 {[%emt 0:06:37]} 44. Ra6 {[%emt 0:02:10]} Rb3 {[%emt 0:00:09]} 45. Rxc6 {[%emt 0:00:26]} Rxb7 {[%emt 0:00:08]} 46. gxf5+ {[%emt 0:02:48]} Kxf5 {[%emt 0:00:20]} 47. Rc5+ {[%emt 0:00:56]} Ke4 {[%emt 0:02:38]} 48. Bxa5 {[%emt 0:00:49]} Kf3 {[%emt 0:01:22]} 49. Rxg5 {[%emt 0:01:52]} Rb1+ {[%emt 0:00:07]} 50. Kd2 {[%emt 0:00:03]} Rh1 {[%emt 0:00:07]} 51. Re5 {[%emt 0:00:58]} Rxh3 {[%emt 0:00:11]} 52. Re3+ {[%emt 0:01:03]} Kg2 {[%emt 0:00:07]} 53. Rxh3 {[%emt 0:00:04]} 1/2-1/2

[Event "XII Cracow ICC-A 2024"]
[Site "Krakow"]
[Date "2024.06.22"]
[Round "1.9"]
[White "Rozentalis, Eduardas"]
[Black "Pyrig, Roman"]
[Result "1-0"]
[ECO "B53"]
[WhiteElo "2476"]
[BlackElo "2260"]
[Annotator "TA"]
[PlyCount "75"]
[EventDate "2024.06.20"]
[EventType "swiss"]
[EventCountry "POL"]
[SourceTitle "playchess.com"]
[Source "ChessBase"]
[SourceQuality "1"]
[TimeControl "40/5400+30:1800+30"]

{[%evp 22,75,0,0,42,2,57,0,0,1,15,4,25,16,25,24,9,9,35,37,39,50,48,6,40,49,39,36,46,0,193,188,203,214,220,222,220,193,196,175,156,122,114,118,191,202,225,188,281,277,323,329,636,636,29992,29993]} 1. e4 {[%emt 0:00:02]} c5 {[%emt 0:00:17]} 2. Nf3 {[%emt 0:00:09]} d6 {[%emt 0:00:06]} 3. d4 {[%emt 0:00:21]} cxd4 {[%emt 0:00:10]} 4. Qxd4 {[%emt 0:00:05]} Nc6 {[%emt 0:00:11]} 5. Bb5 {[%emt 0:00:07]} Bd7 {[%emt 0:01:28]} 6. Bxc6 {[%emt 0:00:23]} Bxc6 {[%emt 0:00:51]} 7. Nc3 {[%emt 0:00:06]} Nf6 {[%emt 0:00:24]} 8. Bg5 {[%emt 0:00:05]} e6 {[%emt 0:00:03]} 9. O-O-O {[%emt 0:00:10]} Be7 {[%emt 0:00:06]} 10. Rhe1 {[%emt 0:00:07]} O-O {[%emt 0:01:47]} 11. Kb1 {[%emt 0:00:03]} Qa5 {[%emt 0:02:21]} 12. Qd2 {[%emt 0:00:34][%cal Oc3d5]} Rfc8 {[%emt 0:04:12]} (12... Qc7 $5) 13. Nd4 {[%emt 0:03:25][%cal Oc3d5]} (13. Nd5 {seems wilder.} Qxd2 14. Nxe7+ Kf8 15. Nxd2 Kxe7 16. Nc4) 13... a6 {[%emt 0:13:32]} (13... Qd8 $11) 14. f3 {[%emt 0:04:28]} (14. Nd5 $14 Qxd2 15. Nxe7+ Kf8 16. Bxd2 (16. Rxd2 Kxe7 17. Bh4 Kf8 $16) 16... Kxe7 17. e5) 14... Qc7 {[%emt 0:13:56] The position is equal.} 15. g4 {[%emt 0:01:29][%cal Bg2g4,Bg4h5,Bh5h6][%mdl 32]} Be8 {[%emt 0:00:25]} 16. Nce2 {[%emt 0:00:56]} b5 {[%emt 0:03:24]} 17. Ng3 {[%emt 0:00:07]} a5 {[%emt 0:01:00]} 18. Nh5 {[%emt 0:00:21]} Nxh5 {[%emt 0:00:51]} 19. gxh5 {[%emt 0:00:51]} Bxg5 {[%emt 0:11:26]} 20. Qxg5 {[%emt 0:00:17][%cal Oe1g1] Rg1! is the strong threat.} Qd8 {[%emt 0:00:02]} 21. Qg3 {[%emt 0:09:42]} Rc5 {[%emt 0:00:02]} 22. h6 $40 {[%emt 0:02:22][%mdl 128] White has some attack.} Rg5 {[%emt 0:00:38]} 23. Qf2 {[%emt 0:08:54]} g6 {[%emt 0:02:46]} 24. f4 {[%emt 0:03:15]} Rh5 {[%emt 0:01:51]} 25. Qd2 {[%emt 0:02:58]} (25. f5 $14) 25... e5 $2 {[%emt 0:06:12] [#]} (25... Rc8 $11 {and Black is okay.}) 26. Nf5 $1 $18 {[%emt 0:03:11][%cal Of4e5][%mdl 512] aiming for fxe5!} Qf6 {[%emt 0:04:35]} (26... gxf5 $2 27. Qg2+ $18) (26... Qc7 27. Nxd6) 27. Nxd6 {[%emt 0:05:55]} (27. Qxd6 Qxd6 28. Nxd6 exf4 $17) 27... exf4 {[%emt 0:14:24] [#]} 28. e5 $1 {[%emt 0:01:43][%mdl 512]} Qe6 {[%emt 0:00:02]} (28... Rxe5 $2 29. Rxe5 Qxe5 30. Re1 $18) 29. Qxf4 {[%emt 0:01:39] Strongly threatening Ne4.} Bc6 {[%emt 0:00:01] Black is weak on the dark squares} 30. h4 {[%emt 0:14:53]} Rf8 {[%emt 0:06:47]} 31. Ne4 {[%emt 0:02:49] White is more active.} Bxe4 {[%emt 0:00:06]} 32. Rxe4 {[%emt 0:00:06]} Rf5 {[%emt 0:01:10]} (32... Re8 $16 {might work better.} 33. a3 Rf8 (33... Rxe5 34. Rxe5 Kf8 35. Rxe6 Rxe6 36. Qc7 Re8 37. Rd8 b4 38. Qd6+ Kg8 39. Rxe8#)) 33. Qe3 {[%emt 0:01:05]} Re8 {[%emt 0:10:08]} 34. a3 {[%emt 0:03:48][%cal Ba2a3,Ba3a4][%mdl 32]} b4 {[%emt 0:01:40]} (34... Rxe5 35. Rxe5 Qxe5 36. Qxe5 Kf8 37. Qf6 (37. Qxb5 f5 38. Rd7 Re1+ 39. Ka2 Re8 40. Qc5+ Kg8 41. Qc4+ Kh8 42. Qd4+ Kg8 43. Qg7#) 37... Re4 38. Rd8+ Re8 39. Qd6+ Kg8 40. Rxe8#) (34... Kf8 $142 35. Qc5+ Qe7 36. Qxb5 Rxe5 37. Rxe5 Qxe5) 35. a4 {[%emt 0:00:42]} (35. axb4 $6 axb4 36. b3 (36. Rxb4 Rxe5 37. Qc3 Qe7 $18) 36... Qc6 $18 (36... Rxe5 37. Rxe5 Qxe5 38. Qxe5 Kf8 39. Qf6 Re4 40. Rd8+ Re8 41. Qd6+ Kg8 42. Rxe8#)) 35... Qe7 {[%emt 0:00:34]} (35... Rxe5 36. Rxe5 b3 37. Rxe6 fxe6 38. cxb3 Kf8 39. Qe5 Rc8 40. Qf6+ (40. Qxa5 Kf7 41. Rf1+ Ke8 42. Qa7 Rc6 43. Qg7 Rc1+ 44. Kxc1 Kd8 45. Rf8#) 40... Ke8 41. Qxe6+ Kf8 42. Rf1#) 36. b3 {[%emt 0:00:45]} Rc8 $2 {[%emt 0:00:01]} ({Inferior is} 36... Rxe5 37. Rxe5 Qxe5 38. Qxe5 Kf8 39. Qc5+ (39. Qxa5 f6 40. Rd7 f5 41. Qxb4+ Kg8 42. Qc4+ Kh8 43. Qd4+ Kg8 44. Qg7#) 39... Kg8 40. Qe7 (40. Qxa5 Kf8 41. Qxb4+ Kg8) 40... Rf8 41. Qf6 Re8 42. Qg7#) (36... Rh5 37. Rd5 Rxh4 38. Rxh4 (38. Rxa5 Rh1+ 39. Ka2 Qd7 $18) 38... Qxh4 39. Rxa5 Rc8) 37. e6 {[%emt 0:00:53]} Qc7 {[%emt 0:01:00]} 38. Rc4 {[%emt 0:01:11] Weighted Error Value: White=0.13 (very precise) /Black=0.55.  Loses game:     	---       	Black=1      Mistake:       	White=2     	Black=4      Inaccurate:     	White=2     	Black=3      OK:         	White=10    	Black=8      Best:        	White=1     	---        Brilliant:      	White=2     	---} 1-0

[Event "XII Cracow ICC-A 2024"]
[Site "Krakow"]
[Date "2024.06.22"]
[Round "1.10"]
[White "Damen, Jip"]
[Black "Zwardon, Vojtech"]
[Result "1-0"]
[ECO "B31"]
[WhiteElo "2259"]
[BlackElo "2458"]
[Annotator "TA"]
[PlyCount "93"]
[EventDate "2024.06.20"]
[EventType "swiss"]
[EventCountry "POL"]
[SourceTitle "playchess.com"]
[Source "ChessBase"]
[SourceQuality "1"]
[TimeControl "40/5400+30:1800+30"]

{[%evp 12,93,18,21,35,25,32,32,33,0,10,0,42,45,58,49,61,0,0,0,0,0,0,0,5,0,13,17,14,17,77,88,184,179,300,279,282,277,369,267,285,253,275,275,262,265,262,274,254,141,163,142,141,141,141,131,147,148,139,111,163,129,230,202,200,218,210,212,220,224,287,291,276,270,404,374,404,370,452,296,507,483,689,682]} 1. e4 {[%emt 0:00:03]} c5 {[%emt 0:00:01]} 2. Nf3 {[%emt 0:00:05]} Nc6 {[%emt 0:00:01]} 3. Bb5 {[%emt 0:00:08]} g6 {[%emt 0:00:02]} 4. O-O {[%emt 0:00:06]} Bg7 {[%emt 0:00:01]} 5. Re1 {[%emt 0:00:08]} e5 {[%emt 0:00:01]} 6. Bxc6 {[%emt 0:00:33]} dxc6 {[%emt 0:00:03]} 7. d3 {[%emt 0:00:07]} Be6 {[%emt 0:00:35]} 8. Be3 {[%emt 0:00:23]} b6 {[%emt 0:00:05]} 9. a3 {[%emt 0:00:37]} a5 {[%emt 0:00:19] White is slightly better.} 10. Qd2 {[%emt 0:04:16]} Bg4 {[%emt 0:00:25]} 11. Qe2 {[%emt 0:02:32]} h6 {[%emt 0:01:03]} 12. Nbd2 {[%emt 0:01:35]} a4 {[%emt 0:00:56]} 13. h3 {[%emt 0:00:21]} Be6 {[%emt 0:00:01]} 14. Nf1 {[%emt 0:02:49]} (14. b4 $14) 14... Qc7 {[%emt 0:00:46]} 15. c3 {[%emt 0:02:33]} Rd8 {[%emt 0:00:06]} 16. Rad1 {[%emt 0:01:10]} Bb3 {[%emt 0:01:12]} 17. Rc1 {[%emt 0:06:56]} Qd7 {[%emt 0:00:16]} 18. N1d2 {[%emt 0:00:07]} Be6 {[%emt 0:03:44]} 19. Nc4 {[%emt 0:00:36]} Qc7 {[%emt 0:00:07]} 20. Qc2 $36 {[%emt 0:06:34][%mdl 2048] White has the initiative.} b5 {[%emt 0:01:43]} (20... Ra8 $11) 21. Ncd2 $16 {[%emt 0:00:28] A dynamic duo of knights.} Qd6 {[%emt 0:01:35]} (21... Nf6 $16 {is a better defense.}) 22. c4 $18 {[%emt 0:02:16]} b4 {[%emt 0:02:34]} (22... Qxd3 $142 23. Qxd3 (23. Bxc5 Qxc2 24. Rxc2 Ne7 $14) 23... Rxd3 24. cxb5 (24. Bxc5 Ne7 $14) 24... cxb5) 23. Qxa4 {[%emt 0:04:10]} bxa3 {[%emt 0:01:49]} 24. Qxa3 {[%emt 0:00:58]} Qxd3 {[%emt 0:00:45]} 25. Rc3 {[%emt 0:01:50]} ({Don't take} 25. Qxc5 Qd6 26. Nb3 Qe7 $18) (25. Bxc5 Qxa3 26. Bxa3 Nf6 $16) 25... Qd7 {[%emt 0:01:37]} 26. Qxc5 {[%emt 0:03:51]} f6 {[%emt 0:04:26]} 27. Ra1 {[%emt 0:01:23]} Bf8 {[%emt 0:00:02]} 28. Qb6 {[%emt 0:00:48] Threatens to win with Ra7.} Rh7 {[%emt 0:00:01]} 29. Ra6 {[%emt 0:03:57]} Rc8 {[%emt 0:00:51]} 30. b4 {[%emt 0:03:41]} ({White should play} 30. Qa5 $18) 30... Qb7 $16 {[%emt 0:01:44]} 31. c5 {[%emt 0:06:50]} Qxb6 {[%emt 0:02:13]} 32. Rxb6 {[%emt 0:00:07]} Ra7 {[%emt 0:00:15]} 33. Nc4 {[%emt 0:02:33]} Bxc4 {[%emt 0:00:17]} 34. Rxc4 {[%emt 0:00:04][%cal Bc3c4,Bc4c1,Bc1a1][%mdl 32]} Be7 {[%emt 0:00:58]} 35. b5 {[%emt 0:01:05] White is more active.} Bd8 {[%emt 0:01:38]} (35... cxb5 $16 {was worth a try.} 36. Rxb5 Bd8) 36. bxc6 $18 {[%emt 0:01:54][%cal Of3d2]} (36. Rxc6 Rxc6 37. bxc6 g5 $11) 36... g5 {[%emt 0:01:01] [#]} (36... Bc7 $16 37. Rc2 Ra1+ 38. Kh2 f5) 37. Rc1 $1 {[%emt 0:01:16]} Rac7 {[%emt 0:01:48]} 38. Nd2 {[%emt 0:01:21][%cal Bf3d2,Bd2c4,Bc4b2][%mdl 32] Nc4 is the strong threat.} Rxc6 {[%emt 0:00:07] Black is weak on the light squares} 39. Rxc6 {[%emt 0:00:20]} Rxc6 {[%emt 0:00:02]} 40. Nc4 {[%emt 0:01:32]} Bc7 {[%emt 0:01:19]} 41. Ra1 {[%emt 0:32:00] Repels Ra6} Ne7 {[%emt 0:30:17]} 42. Ra8+ {[%emt 0:00:59]} Kf7 {[%emt 0:01:05]} (42... Bd8 $142 43. Nd6+ Kd7) 43. f3 {[%emt 0:06:26]} Ng6 {[%emt 0:00:19]} 44. g3 {[%emt 0:01:35]} h5 {[%emt 0:03:10]} 45. Nb2 {[%emt 0:05:10] Black must now prevent Nd3.} h4 $2 {[%emt 0:02:07] [#]} (45... Re6 46. Nc4 Ne7) 46. Nd3 {[%emt 0:01:31]} hxg3 {[%emt 0:00:08]} (46... Re6 $142 47. Nb4 Ke7) 47. Ra7 {[%emt 0:07:20] Weighted Error Value: White=0.18 (very precise) /Black=0.34.  Mistake:       	White=2     	Black=8      Inaccurate:     	White=2     	Black=2      OK:         	White=22    	Black=15     Best:        	White=2     	---} 1-0

[Event "XII Cracow ICC-A 2024"]
[Site "Krakow"]
[Date "2024.06.22"]
[Round "1.11"]
[White "Fus, Jakub"]
[Black "Marszalek, Maciej"]
[Result "1/2-1/2"]
[ECO "C73"]
[WhiteElo "2455"]
[BlackElo "2255"]
[Annotator "TA"]
[PlyCount "90"]
[EventDate "2024.06.20"]
[EventType "swiss"]
[EventCountry "POL"]
[SourceTitle "playchess.com"]
[Source "ChessBase"]
[SourceQuality "1"]
[TimeControl "40/5400+30:1800+30"]

{[%evp 14,90,0,12,33,25,22,27,30,25,40,31,47,20,30,25,27,25,37,14,46,38,38,22,39,21,12,-1,25,24,43,12,29,0,0,0,0,0,0,0,0,-5,-11,-3,-4,-8,-8,-87,-79,-70,-11,-15,-22,0,0,-26,-22,-79,0,0,0,0,0,0,0,0,0,0,0,0,33,0,27,27,27,27,27,27,27]} 1. e4 {[%emt 0:00:02]} e5 {[%emt 0:02:07]} 2. Nf3 {[%emt 0:00:16]} Nc6 {[%emt 0:00:05]} 3. Bb5 {[%emt 0:00:20]} a6 {[%emt 0:00:10]} 4. Ba4 {[%emt 0:01:14]} d6 {[%emt 0:00:46]} 5. Bxc6+ {[%emt 0:01:29]} bxc6 {[%emt 0:00:04]} 6. d4 {[%emt 0:00:09]} exd4 {[%emt 0:02:55]} 7. Qxd4 {[%emt 0:01:01]} c5 {[%emt 0:03:48]} 8. Qd3 {[%emt 0:00:59]} Be7 {[%emt 0:01:56]} 9. Nc3 {[%emt 0:00:48]} Nf6 {[%emt 0:02:14]} 10. O-O {[%emt 0:00:50]} O-O {[%emt 0:00:39]} 11. Re1 {[%emt 0:05:22]} h6 {[%emt 0:03:06]} 12. h3 {[%emt 0:02:16]} Be6 {[%emt 0:04:46]} 13. Bf4 {[%emt 0:03:10]} Re8 {[%emt 0:04:22]} 14. Rad1 {[%emt 0:02:05]} Qc8 {[%emt 0:00:57]} 15. e5 {[%emt 0:05:40]} Bf5 {[%emt 0:12:21]} 16. Qc4 {[%emt 0:03:37]} Be6 {[%emt 0:02:10]} 17. Qe2 {[%emt 0:05:50]} (17. exf6 Bxc4 18. fxe7 Be6 $19) 17... dxe5 {[%emt 0:02:53]} 18. Nxe5 {[%emt 0:04:28]} Qb7 {[%emt 0:01:37]} 19. b3 {[%emt 0:01:03]} (19. Qf3 {simplifies} Qxf3 20. Nxf3 Rac8 21. Be5) 19... Bd6 {[%emt 0:01:53]} 20. Bh2 {[%emt 0:01:50]} (20. Bg3 {simplifies} Rad8 21. Qf3 Qxf3 22. Nxf3 Kf8 23. Rd2) 20... Bf5 {[%emt 0:03:28]} (20... c4 {simplifies} 21. bxc4 Rad8 22. Qf3 Qxf3 23. Nxf3 Bxc4 24. Rxe8+ Nxe8 25. Bxd6 Rxd6 26. Nd4 g6) 21. Qc4 {[%emt 0:02:54] Dancing on a razor blade.} Be6 {[%emt 0:01:50]} 22. Qf1 {[%emt 0:08:06]} (22. Qd3 {simplifies} Rad8 23. Qf3 Qxf3 24. Nxf3 Bf5 25. Rxe8+ Nxe8 26. Ne1) 22... Bf5 {[%emt 0:04:40]} (22... Re7 {simplifies} 23. Nf3 Rae8 24. Be5 Bxe5 25. Rxe5 c4) 23. Na4 {[%emt 0:02:45]} Bxc2 {[%emt 0:06:06]} 24. Rc1 {[%emt 0:04:04]} Bf5 {[%emt 0:01:24]} 25. Qc4 {[%emt 0:08:25]} Re7 {[%emt 0:02:58]} 26. Nxc5 {[%emt 0:10:14]} Qb5 {[%emt 0:01:01]} 27. Qd4 {[%emt 0:04:11]} Rae8 {[%emt 0:02:49]} 28. Re3 $1 {[%emt 0:00:32]} a5 {[%emt 0:09:38]} 29. a3 {[%emt 0:07:23]} Qb6 {[%emt 0:01:55][%cal Of6e4]} (29... Rd8 {seems wilder.} 30. b4 axb4 31. axb4 c6) 30. Rc4 {[%emt 0:01:27]} (30. b4 $11) 30... Be6 {[%emt 0:02:51] A strong pair of Bishops.} 31. Rc1 {[%emt 0:02:25]} Bc8 {[%emt 0:01:23]} ({Black should try} 31... Bd5 $15) 32. b4 $11 {[%emt 0:00:26]} axb4 {[%emt 0:00:51]} 33. axb4 {[%emt 0:00:04]} Bb7 {[%emt 0:01:45]} 34. Bg3 {[%emt 0:06:14]} Ba8 {[%emt 0:01:18]} 35. Rce1 {[%emt 0:01:59]} (35. Ng4 $11 {keeps the balance.} Rxe3 36. Nxe3 (36. Nxf6+ gxf6 37. fxe3 Bxg3 $17)) 35... Qb5 {[%emt 0:01:01]} (35... Nd5 $17 36. Nc4 Qxb4) 36. Ng4 {[%emt 0:03:01]} Nxg4 {[%emt 0:03:11]} 37. Rxe7 {[%emt 0:00:15]} Rxe7 {[%emt 0:00:31]} 38. Rxe7 {[%emt 0:00:05]} Bxe7 {[%emt 0:00:09]} 39. hxg4 {[%emt 0:01:24]} Bf6 {[%emt 0:07:21]} (39... Qc6 $5 40. f3 $8 Qb6 $11) 40. Qf4 {[%emt 0:00:05]} Qc6 {[%emt 0:00:44][%csl Ga8][%cal Rc6g2] [#]} 41. f3 {[%emt 0:30:13] Active counter play!} Bg5 {[%emt 0:33:11][%cal Bf6g5,Bg5e3,Be3c5][%mdl 32]} 42. Qd4 {[%emt 0:02:09]} Qd5 {[%emt 0:00:24]} 43. Qxd5 {[%emt 0:00:10] White has an edge.} Bxd5 {[%emt 0:00:02]} 44. Bxc7 {[%emt 0:00:14]} Be3+ {[%emt 0:00:04]} 45. Kh2 {[%emt 0:00:34]} Bxc5 {[%emt 0:00:03] Weighted Error Value: White=0.12 (very precise) /Black=0.11 (very precise) .  Mistake:       	White=2     	Black=2      Inaccurate:     	White=5     	Black=4      OK:         	White=14    	Black=15     Best:        	White=2     	---        Strong:       	White=1     	---} 1/2-1/2

[Event "XII Cracow ICC-A 2024"]
[Site "Krakow"]
[Date "2024.06.22"]
[Round "1.12"]
[White "Devnani Kush"]
[Black "Mirzoev, Azer"]
[Result "1/2-1/2"]
[ECO "D10"]
[WhiteElo "2250"]
[BlackElo "2448"]
[Annotator "RC"]
[PlyCount "73"]
[EventDate "2024.06.20"]
[EventType "swiss"]
[EventCountry "POL"]
[SourceTitle "playchess.com"]
[Source "ChessBase"]
[SourceQuality "1"]
[TimeControl "40/5400+30:1800+30"]

1. d4 {[%emt 0:00:23]} d5 {[%emt 0:00:37]} 2. c4 {[%emt 0:00:12]} c6 {[%emt 0:00:07]} 3. Nc3 {[%emt 0:00:05]} Nf6 {[%emt 0:00:06]} 4. e3 {[%emt 0:00:06]} g6 {[%emt 0:00:38]} 5. Nf3 {[%emt 0:00:58]} Bg7 {[%emt 0:00:08]} 6. Be2 {[%emt 0:00:47]} O-O {[%emt 0:00:07]} 7. O-O {[%emt 0:00:04]} a6 {[%emt 0:00:17]} 8. Bd2 {[%emt 0:11:13]} Ne4 {[%emt 0:03:55]} 9. cxd5 {[%emt 0:04:57]} Nxd2 {[%emt 0:00:21]} 10. Qxd2 {[%emt 0:05:53]} cxd5 {[%emt 0:00:09]} 11. Rfc1 {[%emt 0:02:16]} Nc6 {[%emt 0:01:52]} 12. h3 {[%emt 0:04:20]} e6 {[%emt 0:00:18]} 13. Na4 {[%emt 0:06:05]} Re8 {[%emt 0:04:00]} 14. Nc5 {[%emt 0:08:50]} Qd6 {[%emt 0:08:11]} 15. Na4 {[%emt 0:08:06]} Rb8 {[%emt 0:01:48]} 16. Qc2 {[%emt 0:07:41]} Bf8 {[%emt 0:03:49]} 17. a3 {[%emt 0:02:33]} h5 {[%emt 0:13:52]} 18. b4 {[%emt 0:08:48]} Re7 {[%emt 0:06:21]} 19. Qc5 {[%emt 0:03:01]} Qd8 {[%emt 0:01:50]} 20. Qb6 {[%emt 0:00:24]} Bd7 {[%emt 0:06:41]} 21. Qxd8 {[%emt 0:00:17]} Rxd8 {[%emt 0:00:11]} 22. Nb6 {[%emt 0:03:45]} Be8 {[%emt 0:00:24]} 23. Rab1 {[%emt 0:04:28]} Rc7 {[%emt 0:04:16]} 24. a4 {[%emt 0:09:11]} Bd6 {[%emt 0:01:22]} 25. b5 {[%emt 0:01:18]} axb5 {[%emt 0:02:37]} 26. axb5 {[%emt 0:01:12]} Ne7 {[%emt 0:02:58]} 27. Nd2 {[%emt 0:01:23]} f6 {[%emt 0:06:10]} 28. Nb3 {[%emt 0:00:21]} Bf7 {[%emt 0:00:23]} 29. Ra1 {[%emt 0:01:44]} e5 {[%emt 0:09:01]} 30. Bd3 {[%emt 0:02:53]} exd4 {[%emt 0:10:53]} 31. exd4 {[%emt 0:00:06]} Bf4 {[%emt 0:02:03]} 32. Rxc7 {[%emt 0:00:23]} Bxc7 {[%emt 0:00:07]} 33. Na8 {[%emt 0:00:06]} Bd6 {[%emt 0:07:20]} 34. Nb6 {[%emt 0:00:26]} Bc7 {[%emt 0:02:51]} 35. Na8 {[%emt 0:00:06]} Bd6 {[%emt 0:01:15]} 36. Nc5 Bxc5 37. dxc5 1/2-1/2